bitfinex/quotes_SOLUSD_20220207
["timestamp","ask_amount","ask_price","bid_price","bid_amount"]
[1644245319311,6.18045,119.92,119.88,31.22102902]
[1644245319814,6.18045,119.92,119.88,43.73112902]
[1644245321015,6.18045,119.92,119.88,53.84112902]
[1644245321315,6.18045,119.92,119.88,55.46480072]
[1644245321515,6.18045,119.92,119.88,53.64112902]
[1644245321913,6.18045,119.92,119.88,53.84112902]
[1644245322114,6.18045,119.92,119.88,53.64112902]
[1644245322316,6.18045,119.92,119.88,53.84112902]
[1644245322514,6.18045,119.92,119.88,53.64112902]
[1644245322715,6.18045,119.92,119.88,53.84112902]
[1644245322913,6.18045,119.92,119.88,53.64112902]
[1644245323115,6.18045,119.92,119.88,53.84112902]
[1644245323816,6.18045,119.92,119.88,41.33102902]
[1644245324017,6.18045,119.92,119.88,41.13102902]
[1644245324216,6.18045,119.92,119.88,41.33102902]
[1644245324418,6.18045,119.92,119.88,41.13102902]
[1644245324618,6.18045,119.92,119.88,41.33102902]
[1644245324821,6.18045,119.92,119.88,41.13102902]
[1644245325019,6.18045,119.92,119.88,41.33102902]
[1644245325219,6.18045,119.92,119.88,41.13102902]
[1644245325424,6.18045,119.92,119.88,41.33102902]
[1644245325819,6.18045,119.92,119.88,43.15470072]
[1644245326020,6.18045,119.92,119.88,42.95470072]
[1644245326420,5.07569132,119.92,119.88,43.15470072]
[1644245326622,1.10475868,119.92,119.88,55.71760072]
[1644245327020,6.18045,119.91,119.88,60.08760072]
[1644245327221,519.48338317,120.0,119.88,66.11160072]
[1644245327424,519.48338317,120.0,119.88,66.08760072]
[1644245327720,519.48338317,120.0,119.88,66.11160072]
[1644245327921,48.38647802,119.99,119.88,66.11160072]
[1644245328121,48.38647802,119.99,119.88,64.03792902]
[1644245328520,48.38647802,119.99,119.88,58.03792902]
[1644245329327,519.48338317,120.0,119.88,27.0169]
[1644245329529,519.48338317,120.0,119.89,1.82715746]
[1644245329727,518.48338317,120.0,119.92,12.5059]
[1644245329931,518.48338317,120.0,119.93,10.11]
[1644245330130,518.48338317,120.0,119.93,11.93715746]
[1644245330328,518.48338317,120.0,119.94,42.79753359]
[1644245330527,518.48338317,120.0,119.96,33.26139763]
[1644245330729,518.48338317,120.0,119.96,43.37139763]
[1644245331230,518.48338317,120.0,119.96,10.11]
[1644245331858,518.48338317,120.0,119.93,10.11]
[1644245332057,40.65693941,119.99,119.91,39.88862991]
[1644245332259,40.65693941,119.99,119.89,0.024]
[1644245332756,40.65693941,119.99,119.88,10.334]
[1644245332958,40.65693941,119.99,119.88,10.134]
[1644245333156,40.65693941,119.99,119.88,51.42291913]
[1644245333359,40.65693941,119.99,119.88,51.22291913]
[1644245333556,40.65693941,119.99,119.88,16.334]
[1644245333757,40.65693941,119.99,119.88,10.134]
[1644245333958,40.65693941,119.99,119.89,12.5113]
[1644245334158,40.65693941,119.99,119.89,24.44845746]
[1644245334559,518.48338317,120.0,119.9,48.80205427]
[1644245334766,518.48338317,120.0,119.91,10.11]
[1644245334962,518.48338317,120.0,119.91,11.93715746]
[1644245335159,518.48338317,120.0,119.92,1.82715746]
[1644245335361,518.48338317,120.0,119.93,10.11]
[1644245335564,518.48338317,120.0,119.94,27.25687695]
[1644245335761,518.48338317,120.0,119.95,12.5054]
[1644245336462,518.48338317,120.0,119.96,10.11]
[1644245336663,518.48338317,120.0,119.96,16.11]
[1644245336861,518.48338317,120.0,119.97,50.90059804]
[1644245337063,518.48338317,120.0,119.98,10.11]
[1644245337262,518.48338317,120.0,119.98,12.18715746]
[1644245337464,518.48338317,120.0,119.98,10.11]
[1644245338063,518.48338317,120.0,119.99,12.4993]
[1644245338262,518.48338317,120.0,119.99,12.7493]
[1644245338863,518.48338317,120.0,119.99,50.40893318]
[1644245339062,518.48338317,120.0,119.99,50.15893318]
[1644245339263,270.71294949,120.0,119.99,12.4993]
[1644245339465,187.39114949,120.0,119.99,24.43176843]
[1644245339664,1.17824851,120.11,119.99,24.43176843]
[1644245339863,329.70704851,120.12,119.99,30.43176843]
[1644245340166,36.54300361,120.11,119.99,30.43176843]
[1644245340367,36.54300361,120.11,120.02,12.4988]
[1644245340563,46.5288,120.12,120.02,22.6088]
[1644245340763,46.5288,120.12,120.02,24.68126843]
[1644245340965,46.5288,120.12,120.02,28.6088]
[1644245341363,46.28540041,120.12,120.02,28.8588]
[1644245341663,89.60940754,120.12,120.05,12.4953]
[1644245342063,43.32400713,120.12,120.05,12.4953]
[1644245342262,43.32400713,120.12,120.02,10.11]
[1644245342462,44.50225564,120.12,120.02,10.11]
[1644245342665,43.32400713,120.12,120.02,19.30529728]
[1644245343264,43.32400713,120.12,120.02,10.11]
[1644245343768,4.164,120.11,119.98,4.164]
[1644245343966,1.17824851,120.1,119.98,4.164]
[1644245344167,1.17824851,120.08,119.89,1.17701351]
[1644245344366,1.17824851,120.06,119.89,10.134]
[1644245344567,12.5096,120.03,119.91,12.5096]
[1644245344766,22.2186,120.03,119.89,10.134]
[1644245344966,4.168,120.02,119.89,0.024]
[1644245345169,6.31482857,120.02,119.89,0.024]
[1644245345367,2.14682857,120.01,119.87,6.1583]
[1644245345567,12.5144,119.99,119.88,7.19492074]
[1644245345766,38.68329913,120.01,119.88,17.50492074]
[1644245345967,38.68329913,120.01,119.88,34.40306798]
[1644245346166,38.68329913,120.01,119.88,46.75480044]
[1644245346567,38.68329913,120.01,119.88,21.67292074]
[1644245346766,51.19419913,120.01,119.9,27.32611934]
[1644245346966,55.36219913,120.01,119.89,0.024]
[1644245347167,51.19419913,120.01,119.88,10.334]
[1644245347975,22.9064,120.02,119.89,12.5122]
[1644245348170,22.9064,120.02,119.9,10.11]
[1644245348569,22.9064,120.02,119.9,16.36]
[1644245349075,48.68119356,120.01,119.93,12.5056]
[1644245349269,48.68119356,120.01,119.93,18.91371042]
[1644245349470,48.68119356,120.01,119.93,29.02371042]
[1644245349870,48.68119356,120.01,119.93,18.91371042]
[1644245350071,22.9064,120.02,119.93,18.91371042]
[1644245350473,22.9064,120.02,119.93,12.5056]
[1644245350773,22.9064,120.02,119.94,8.20608861]
[1644245350971,124.7919,120.04,119.94,8.20608861]
[1644245351173,125.97014851,120.04,119.94,8.20608861]
[1644245351371,12.5096,120.02,119.94,8.861e-05]
[1644245351972,125.97014851,120.04,119.94,8.861e-05]
[1644245352572,1438.56,120.0,119.94,8.861e-05]
[1644245353974,1451.0716,120.0,119.94,8.861e-05]
[1644245358178,1460.8496,120.0,119.94,8.861e-05]
[1644245358380,12.5163,119.98,119.94,8.861e-05]
[1644245361580,46.9821,119.99,119.94,8.861e-05]
[1644245363980,1438.56,120.0,119.94,8.861e-05]
[1644245364380,1438.56,120.0,119.94,12.50708861]
[1644245364782,1486.57800076,120.0,119.94,12.50708861]
[1644245364982,1438.56,120.0,119.94,37.99645692]
[1644245365410,1438.56,120.0,119.94,39.81738161]
[1644245365602,1438.56,120.0,119.94,14.3280133]
[1644245366105,1438.56,120.0,119.94,8.861e-05]
[1644245367003,1438.56,120.0,119.94,1.8210133]
[1644245367604,1438.56,120.0,119.94,14.3280133]
[1644245367805,1438.56,120.0,119.95,7.64451482]
[1644245368509,1438.56,120.0,119.95,15.59564951]
[1644245369907,1438.56,120.0,119.95,28.10104951]
[1644245370109,1438.56,120.0,119.95,21.97083951]
[1644245371212,1438.56,120.0,119.95,22.22083951]
[1644245371409,1438.56,120.0,119.97,12.5005]
[1644245371709,1438.56,120.0,119.98,26.87652526]
[1644245371908,1438.56,120.0,119.98,28.69744995]
[1644245372109,1438.56,120.0,119.98,2.07092469]
[1644245372310,1438.56,120.0,119.98,1.82092469]
[1644245372508,1438.56,120.0,119.98,2.07092469]
[1644245372910,1438.56,120.0,119.99,12.4993]
[1644245373112,1438.56,120.0,119.99,14.32022469]
[1644245373312,1438.56,120.0,119.99,47.44524547]
[1644245373512,1319.2201,120.0,119.99,47.44524547]
[1644245373710,1316.87692344,120.0,119.99,24.68022469]
[1644245374312,1316.87692344,120.0,119.99,48.89443593]
[1644245374712,1316.87692344,120.0,119.99,24.68022469]
[1644245376315,1316.87692344,120.0,119.99,14.32022469]
[1644245376316,1322.93692344,120.0,119.99,14.32022469]
[1644245376514,1322.93692344,120.0,119.98,12.5028]
[1644245377315,1322.93692344,120.0,119.98,18.63148]
[1644245378116,1319.90472347,120.0,119.99,1.811587]
[1644245378318,1316.87692344,120.0,119.99,8.189757]
[1644245378518,1316.87692344,120.0,119.99,14.189757]
[1644245379116,1322.93692344,120.0,119.99,55.851957]
[1644245379317,1316.87692344,120.0,119.99,54.04037]
[1644245379517,1316.87692344,120.0,119.99,12.37817]
[1644245379919,1316.87692344,120.0,119.96,12.5044]
[1644245380120,1316.87692344,120.0,119.96,18.5044]
[1644245380523,1316.87692344,120.0,119.96,12.5044]
[1644245380925,1357.05918007,120.0,119.96,12.5044]
[1644245381430,1357.05918007,120.0,119.98,1.260738]
[1644245381619,6.06,119.99,119.98,1.260738]
[1644245384522,6.06,119.99,119.98,3.8e-05]
[1644245387224,3.02780003,119.99,119.98,3.8e-05]
[1644245388226,1316.87692344,120.0,119.98,3.8e-05]
[1644245388428,1316.87692344,120.0,119.98,12.502438]
[1644245389728,1316.87692344,120.0,119.98,3.8e-05]
[1644245390127,3.02780003,119.99,119.98,3.8e-05]
[1644245390929,6.06,119.99,119.98,3.8e-05]
[1644245392228,6.06,119.99,119.97,12.504]
[1644245393129,6.06,119.99,119.97,12.754]
[1644245393732,1316.87692344,120.0,119.97,24.675587]
[1644245394034,1206.39402344,120.0,119.97,30.675587]
[1644245394832,1206.39402344,120.0,119.98,7.56555402]
[1644245395132,1093.13442344,120.0,119.99,22.6082]
[1644245395331,1009.24161601,120.0,119.99,25.836587]
[1644245395529,1009.24161601,120.0,119.99,21.726587]
[1644245395530,788.29076917,120.0,119.99,21.726587]
[1644245395730,5.67161332,120.0,119.99,49.64332073]
[1644245395933,0.2,120.08,119.99,49.64332073]
[1644245396230,0.2,120.08,120.04,12.4903]
[1644245396431,0.2,120.08,120.05,10.11]
[1644245396629,0.2,120.08,120.05,17.921587]
[1644245396830,0.2,120.08,120.06,1.811587]
[1644245397032,0.2,120.08,120.06,11.921587]
[1644245397229,0.2,120.08,120.07,6.06439994]
[1644245398831,0.2,120.08,120.07,6.31439994]
[1644245399930,0.2,120.08,120.07,47.94969994]
[1644245400133,0.2,120.08,120.07,47.69969994]
[1644245400330,0.2,120.08,120.07,41.6353]
[1644245401031,0.2,120.08,120.07,64.9242366]
[1644245401331,0.2,120.08,120.07,70.9242366]
[1644245401730,0.2,120.08,120.07,71.1742366]
[1644245401931,282.0,120.15,120.08,0.2]
[1644245402135,1.17824851,120.19,120.12,12.4808]
[1644245402332,282.0,120.21,120.13,14.27]
[1644245402533,282.0,120.21,120.13,11.91253666]
[1644245402834,282.0,120.21,120.14,1.80253666]
[1644245403035,282.0,120.21,120.15,10.11]
[1644245403234,282.0,120.21,120.15,22.8406]
[1644245403235,323.89883329,120.21,120.15,22.8406]
[1644245403435,323.89883329,120.21,120.16,1.80253666]
[1644245403636,323.89883329,120.21,120.15,0.25]
[1644245403837,323.89883329,120.21,120.13,2.05253666]
[1644245404035,323.89883329,120.21,120.13,7.80253666]
[1644245404434,282.0,120.21,120.15,12.4834]
[1644245404835,1.17824851,120.27,120.15,14.28593666]
[1644245405034,1.17824851,120.26,120.15,14.28593666]
[1644245405235,282.0,120.23,120.15,12.4834]
[1644245405434,282.0,120.23,120.16,1.80253666]
[1644245405635,282.0,120.23,120.18,12.4791]
[1644245405837,282.0,120.23,120.18,24.1221]
[1644245406036,282.0,120.23,120.19,1.80253666]
[1644245406237,282.0,120.23,120.19,0.00253666]
[1644245406436,282.0,120.23,120.18,1.8]
[1644245406835,282.0,120.23,120.18,1.80253666]
[1644245407038,1.17824851,120.3,120.2,12.4775]
[1644245407243,76.59034851,120.31,120.2,23.2855]
[1644245407440,75.4121,120.31,120.21,1.79789091]
[1644245407638,75.4121,120.31,120.21,7.79789091]
[1644245407837,36.42395594,120.3,120.18,9.44448617]
[1644245408038,36.42395594,120.3,120.18,0.00789091]
[1644245408239,40.35095677,120.28,120.13,1.79789091]
[1644245408440,40.35095677,120.28,120.14,1.79789091]
[1644245408638,36.9923974,120.26,120.14,1.79789091]
[1644245408838,36.9923974,120.26,120.15,10.11]
[1644245409039,36.9923974,120.26,120.17,12.4817]
[1644245409239,36.9923974,120.26,120.18,10.11]
[1644245409439,24.4567,120.3,120.18,19.487]
[1644245409642,48.7058,120.3,120.18,19.487]
[1644245409842,48.7058,120.3,120.18,19.737]
[1644245410040,48.7058,120.3,120.18,21.53489091]
[1644245410242,48.7058,120.3,120.2,12.476]
[1644245410442,34.25171803,120.29,120.21,10.11]
[1644245410643,34.25171803,120.29,120.21,19.653]
[1644245410842,48.7058,120.3,120.21,19.653]
[1644245411447,48.7058,120.3,120.23,0.0048]
[1644245411643,54.7058,120.3,120.19,10.11]
[1644245411849,41.00035219,120.29,120.19,10.11]
[1644245412454,41.00035219,120.29,120.21,11.4777]
[1644245412653,41.00035219,120.29,120.21,0.0077]
[1644245413252,54.7058,120.3,120.21,0.0077]
[1644245413454,48.7058,120.3,120.21,1.79634331]
[1644245413653,48.7058,120.3,120.21,11.90634331]
[1644245414055,4.67765996,120.34,120.21,11.90634331]
[1644245414269,0.52065996,120.34,120.21,11.90634331]
[1644245414468,0.52065996,120.34,120.21,41.01893428]
[1644245414669,0.52065996,120.34,120.21,54.87850209]
[1644245415071,0.42065996,120.34,120.21,54.87850209]
[1644245415269,0.42065996,120.34,120.21,55.12850209]
[1644245416170,0.42065996,120.34,120.26,12.4652]
[1644245416370,0.42065996,120.34,120.27,10.11]
[1644245416569,0.42065996,120.34,120.28,10.11]
[1644245416769,0.42065996,120.34,120.28,12.14864331]
[1644245416969,0.42065996,120.34,120.28,11.89864331]
[1644245417170,0.52065996,120.34,120.29,1.78864331]
[1644245417369,0.42065996,120.34,120.29,24.36314331]
[1644245417577,0.42065996,120.34,120.29,24.61314331]
[1644245417771,0.42065996,120.34,120.3,1.78864331]
[1644245417969,0.42065996,120.34,120.3,10.11]
[1644245418270,0.42065996,120.34,120.29,10.11]
[1644245418470,0.52065996,120.34,120.31,12.466]
[1644245418671,52.66191325,120.33,120.31,0.00464331]
[1644245418872,5.0,120.33,120.29,3.11]
[1644245419472,5.0,120.33,120.31,12.466]
[1644245419673,0.42065996,120.34,120.32,1.06439994]
[1644245420077,0.42065996,120.34,120.31,1.78864331]
[1644245420078,5.0,120.33,120.3,41.5526]
[1644245420273,5.0,120.33,120.3,51.6626]
[1644245420475,5.0,120.33,120.31,1.78864331]
[1644245420873,3.03219997,120.33,120.32,12.4661]
[1644245421076,0.42065996,120.34,120.32,12.4661]
[1644245422480,6.06,120.33,120.3,3.1926]
[1644245422684,6.06,120.33,120.28,10.11]
[1644245422882,0.42065996,120.34,120.28,10.11]
[1644245423082,0.42065996,120.34,120.29,1.78404074]
[1644245423282,0.42065996,120.34,120.3,10.11]
[1644245423784,0.42065996,120.34,120.31,1.78404074]
[1644245424082,0.42065996,120.34,120.32,10.11]
[1644245424484,0.42065996,120.34,120.33,1.78404074]
[1644245424783,0.42065996,120.34,120.33,11.89404074]
[1644245424984,0.4392882,120.36,120.34,35.0]
[1644245425188,0.4392882,120.36,120.35,10.11]
[1644245425583,0.34997732,120.38,120.35,39.32400468]
[1644245425785,0.34997732,120.38,120.35,67.57389952]
[1644245425986,0.34997732,120.38,120.36,1.78404074]
[1644245426185,0.34997732,120.38,120.37,10.11]
[1644245426385,0.34997732,120.38,120.37,14.262]
[1644245426685,0.439,120.4,120.37,54.84920468]
[1644245426887,0.439,120.4,120.37,69.23953171]
[1644245427588,0.439,120.4,120.37,83.09909952]
[1644245428788,0.439,120.4,120.37,71.72509952]
[1644245429788,0.439,120.4,120.37,57.33477249]
[1644245430191,0.439,120.4,120.37,65.72509952]
[1644245430992,0.439,120.4,120.37,71.72509952]
[1644245431191,0.439,120.4,120.37,65.72509952]
[1644245431390,0.439,120.4,120.37,28.75294074]
[1644245431591,0.439,120.4,120.37,34.75294074]
[1644245431990,0.439,120.4,120.37,28.75294074]
[1644245432194,0.439,120.4,120.37,43.47520468]
[1644245433091,0.439,120.4,120.37,37.47520468]
[1644245433292,0.439,120.4,120.37,43.47520468]
[1644245433692,0.439,120.4,120.37,39.07320468]
[1644245433893,0.439,120.4,120.37,22.5669]
[1644245434092,0.439,120.4,120.37,12.4569]
[1644245434292,0.439,120.4,120.35,16.6147]
[1644245434492,0.539,120.4,120.35,16.6147]
[1644245434991,0.439,120.4,120.35,16.6147]
[1644245435193,0.439,120.4,120.35,12.4627]
[1644245435795,0.439,120.4,120.33,41.5407]
[1644245435796,158.0,120.39,120.31,1.7829552]
[1644245435994,47.57597345,120.38,120.3,10.11]
[1644245436199,0.1,120.37,120.3,11.8929552]
[1644245436796,0.1,120.37,120.31,12.4668]
[1644245438297,0.1,120.37,120.29,12.469]
[1644245438497,0.1,120.37,120.26,55.8274]
[1644245438697,38.21981098,120.36,120.26,55.8274]
[1644245438898,0.1,120.35,120.26,51.6724]
[1644245439297,0.1,120.35,120.27,41.5599]
[1644245439497,0.1,120.35,120.28,22.5801]
[1644245439797,0.1,120.36,120.28,35.6221]
[1644245440002,0.1,120.36,120.28,51.26545183]
[1644245440202,0.1,120.39,120.28,129.19248724]
[1644245440429,0.1,120.39,120.37,1.78515018]
[1644245440725,0.1,120.39,120.38,22.5666]
[1644245440926,0.42164886,120.48,120.38,22.5666]
[1644245441123,0.42164886,120.48,120.41,0.539]
[1644245441334,0.42164886,120.48,120.42,4.151]
[1644245441546,0.42164886,120.48,120.42,30.3491447]
[1644245441725,0.42164886,120.48,120.44,1.84]
[1644245441930,0.20910637,120.5,120.45,14.26]
[1644245442226,0.20910637,120.5,120.45,34.74055018]
[1644245442525,1.143,120.56,120.46,1.78515018]
[1644245442727,1.143,120.56,120.47,10.11]
[1644245443229,1.143,120.56,120.48,1.788925]
[1644245443426,1.143,120.56,120.49,22.5542]
[1644245443624,1.143,120.56,120.49,28.5542]
[1644245443824,1.143,120.56,120.49,22.5542]
[1644245444725,1.143,120.56,120.5,1.788925]
[1644245444926,1.143,120.56,120.51,12.4456]
[1644245446226,1.143,120.56,120.49,12.4483]
[1644245446427,47.16091945,120.55,120.49,12.4483]
[1644245447025,1.143,120.56,120.49,12.4483]
[1644245447227,0.25,120.55,120.49,12.4483]
[1644245448226,1.393,120.56,120.49,12.4483]
[1644245448528,7.143,120.56,120.49,12.4483]
[1644245449025,46.15834214,120.55,120.49,12.4483]
[1644245449629,52.15834214,120.55,120.46,12.4511]
[1644245450236,52.40834214,120.55,120.46,12.4511]
[1644245450529,0.25,120.55,120.46,12.4511]
[1644245450730,6.0,120.55,120.46,12.4511]
[1644245450932,1.393,120.56,120.46,12.4511]
[1644245451134,1.393,120.56,120.46,22.5611]
[1644245451334,7.393,120.56,120.46,24.3454182]
[1644245451533,1.143,120.56,120.46,24.3454182]
[1644245451735,7.143,120.56,120.47,9.31186534]
[1644245451935,1.143,120.56,120.48,14.258]
[1644245452137,1.143,120.56,120.5,12.4437]
[1644245452332,1.143,120.56,120.51,10.11]
[1644245452531,1.143,120.56,120.51,11.8943182]
[1644245452932,1.143,120.56,120.52,1.7843182]
[1644245453333,1.143,120.56,120.52,14.2268182]
[1644245453636,1.043,120.56,120.53,10.11]
[1644245453837,0.26633652,120.58,120.55,82.0]
[1644245454034,0.26633652,120.58,120.56,15.4]
[1644245454340,0.51631483,120.68,120.56,15.4]
[1644245454341,1.64164911,120.68,120.57,0.32152139]
[1644245454533,1.64164911,120.68,120.58,10.37633652]
[1644245454733,1.14164911,120.68,120.58,22.7911]
[1644245454936,1.14164911,120.68,120.58,50.84828354]
[1644245455133,1.14164911,120.68,120.61,0.31796171]
[1644245455336,1.14164911,120.68,120.62,10.11]
[1644245455542,1.14164911,120.68,120.65,4.31799326]
[1644245455734,0.21568402,120.72,120.66,10.11]
[1644245455936,0.43136804,120.72,120.66,14.11]
[1644245456143,0.43136804,120.72,120.66,43.88630243]
[1644245456337,0.43136804,120.72,120.67,11.10160243]
[1644245456536,0.43136804,120.72,120.68,10.11]
[1644245456742,0.43136804,120.72,120.68,34.65160243]
[1644245456936,28.63406268,120.82,120.68,40.65160243]
[1644245457264,24.49206268,120.82,120.72,12.84976804]
[1644245457438,46.24982049,120.82,120.72,12.4184]
[1644245457638,46.24982049,120.82,120.73,11.89973709]
[1644245457836,46.24982049,120.82,120.73,10.11]
[1644245458035,45.74982049,120.82,120.73,10.11]
[1644245458235,45.74982049,120.82,120.68,4.139]
[1644245458442,47.89664906,120.82,120.69,10.11]
[1644245458636,126.11424906,120.82,120.69,22.535]
[1644245458838,124.21742049,120.82,120.69,22.535]
[1644245459638,126.36424906,120.82,120.69,22.535]
[1644245460037,0.1,120.81,120.69,22.535]
[1644245460439,160.14682857,120.8,120.65,14.25]
[1644245460638,35.75222772,120.79,120.62,14.251]
[1644245460841,159.16275629,120.79,120.62,10.11]
[1644245461040,157.01592772,120.79,120.64,12.431]
[1644245461240,157.01592772,120.79,120.65,14.251]
[1644245461446,0.1,120.8,120.66,10.11]
[1644245461640,0.1,120.81,120.68,126.38]
[1644245461842,0.1,120.81,120.69,14.25]
[1644245462039,0.1,120.81,120.69,16.04056465]
[1644245462243,0.1,120.81,120.7,2.10467399]
[1644245462441,0.1,120.81,120.71,14.25]
[1644245462640,0.1,120.81,120.71,22.04056465]
[1644245462843,0.1,120.81,120.71,20.5]
[1644245463541,0.1,120.81,120.74,12.4159]
[1644245463742,0.1,120.81,120.75,14.249]
[1644245463945,0.1,120.81,120.75,10.11]
[1644245464244,0.1,120.81,120.75,10.36]
[1644245464445,0.1,120.81,120.75,12.15056465]
[1644245464645,0.1,120.82,120.76,12.4164]
[1644245464845,0.1,120.82,120.77,10.11]
[1644245465244,0.1,120.82,120.77,12.15056465]
[1644245465851,0.1,120.82,120.77,22.5266]
[1644245466048,0.1,120.82,120.77,28.5266]
[1644245466257,0.1,120.82,120.77,22.5266]
[1644245466648,0.1,120.82,120.72,4.139]
[1644245466848,9.783,120.82,120.73,10.11]
[1644245467048,9.783,120.82,120.72,10.11]
[1644245467249,40.77005579,120.81,120.71,10.11]
[1644245467450,0.1,120.8,120.71,10.11]
[1644245468151,0.1,120.8,120.71,24.32472455]
[1644245468351,0.1,120.82,120.72,4.14]
[1644245468550,0.1,120.82,120.73,10.11]
[1644245468954,0.1,120.82,120.74,14.21152455]
[1644245469151,0.1,120.82,120.74,28.46052455]
[1644245469351,0.1,120.82,120.74,28.71052455]
[1644245469552,0.1,120.82,120.74,26.9183]
[1644245469750,0.1,120.82,120.73,41.3913]
[1644245469953,0.1,120.82,120.72,1.79222455]
[1644245470354,41.95381157,120.82,120.68,12.425]
[1644245470563,0.1,120.81,120.68,12.425]
[1644245470863,37.16958454,120.79,120.63,11.43]
[1644245471065,37.16958454,120.79,120.64,10.11]
[1644245471263,37.41958454,120.79,120.64,10.11]
[1644245471661,35.81575915,120.77,120.58,10.11]
[1644245471865,59.7734,120.76,120.58,10.11]
[1644245472063,35.90084223,120.75,120.58,10.11]
[1644245472264,58.82334223,120.75,120.58,10.11]
[1644245472463,22.9225,120.75,120.59,1.79751948]
[1644245472663,22.6887,120.76,120.6,4.143]
[1644245472862,22.6887,120.76,120.6,60.67951856]
[1644245473064,4.143,120.79,120.62,50.93559882]
[1644245473261,0.1,120.8,120.62,50.93559882]
[1644245473262,0.1,120.81,120.64,50.62]
[1644245473462,47.75666257,120.81,120.65,64.871]
[1644245473667,0.1,120.8,120.69,12.4187]
[1644245473862,0.1,120.81,120.7,10.11]
[1644245474065,0.1,120.81,120.7,20.25]
[1644245474263,0.1,120.81,120.7,10.39]
[1644245474461,0.1,120.81,120.7,6.25]
[1644245474663,0.1,120.81,120.71,1.78837643]
[1644245474865,0.1,120.81,120.73,12.4193]
[1644245475064,42.04923753,120.81,120.73,28.5293]
[1644245475263,0.1,120.8,120.73,28.7793]
[1644245475471,0.1,120.81,120.73,28.5293]
[1644245475665,0.1,120.81,120.73,40.2793]
[1644245475866,0.1,120.81,120.73,40.0293]
[1644245476266,0.1,120.81,120.73,40.2793]
[1644245477269,0.1,120.81,120.74,1.78387213]
[1644245477466,0.1,120.81,120.76,12.4171]
[1644245477666,0.1,120.82,120.77,10.11]
[1644245477967,0.1,120.82,120.77,66.65287213]
[1644245478167,0.1,120.82,120.78,1.78387213]
[1644245478367,0.1,120.82,120.79,10.11]
[1644245478567,0.1,120.82,120.8,12.4115]
[1644245478767,0.1,120.82,120.81,10.11]
[1644245478966,330.2,120.83,120.8,12.4115]
[1644245479171,0.1,120.82,120.8,10.11]
[1644245480369,6.06,120.81,120.8,10.11]
[1644245480768,0.1,120.82,120.8,10.11]
[1644245480968,0.1,120.82,120.8,22.5246]
[1644245481169,0.1,120.82,120.8,34.99997804]
[1644245481804,0.1,120.82,120.8,22.7746]
[1644245482001,6.06,120.81,120.8,22.7746]
[1644245482201,6.2554,120.8,120.78,41.3766]
[1644245482401,6.3554,120.8,120.79,10.11]
[1644245482601,6.3554,120.8,120.77,10.11]
[1644245482602,6.2554,120.8,120.77,10.11]
[1644245483201,6.2554,120.8,120.78,1.77937804]
[1644245483401,0.1,120.82,120.78,11.88937804]
[1644245483601,0.1,120.82,120.78,10.11]
[1644245484603,0.1,120.82,120.79,12.4159]
[1644245484803,0.1,120.82,120.8,10.11]
[1644245485203,0.1,120.82,120.8,10.36]
[1644245485402,0.1,120.82,120.8,12.13937804]
[1644245485602,0.1,120.82,120.81,12.4118]
[1644245485805,330.2,120.83,120.81,22.7718]
[1644245488004,330.2,120.83,120.81,28.7718]
[1644245488204,330.2,120.83,120.81,22.7718]
[1644245488406,330.2,120.83,120.81,24.55117804]
[1644245488805,330.2,120.83,120.81,30.55117804]
[1644245489206,330.2,120.83,120.82,4.138]
[1644245489407,330.0,120.83,120.82,10.11]
[1644245489906,330.0,120.83,120.82,16.11]
[1644245490108,329.49036268,120.83,120.82,17.88937804]
[1644245490506,246.77766268,120.83,120.82,17.88937804]
[1644245490706,246.77766268,120.83,120.82,18.13937804]
[1644245491513,246.77766268,120.83,120.82,17.88937804]